fUST/lending_fUST_20250705
["ID","MTS","AMOUNT","RATE_DAILY","PERIOD"]
[369617320,1751646650656,-460.0,0.0001863,2]
[369617322,1751646650666,-460.0,0.0001863,2]
[369617324,1751646650675,-538.69,0.0001863,2]
[369617326,1751646650685,-867.35,0.0001863,2]
[369617328,1751646650694,-460.0,0.0001863,2]
[369617330,1751646650704,-460.0,0.0001863,2]
[369617332,1751646650714,-460.0,0.0001863,2]
[369617334,1751646650723,-522.98,0.0001863,2]
[369617336,1751646650732,-460.0,0.0001863,2]
[369617338,1751646650741,-175.0,0.00018645,2]
[369617340,1751646650751,-575.7832369,0.00018712,2]
[369617342,1751646650760,-177.5104021,0.00018712,2]
[369617344,1751646650769,-179.8295263,0.00018712,2]
[369617345,1751646650778,-306.0,0.00018712,2]
[369617348,1751646650788,-575.7832369,0.00018712,2]
[369617349,1751646650798,-575.7832369,0.00018712,2]
[369617351,1751646650807,-575.7832369,0.00018712,2]
[369617353,1751646650818,-575.7832369,0.00018712,2]
[369617355,1751646650827,-1108.5070616,0.00018712,2]
[369617357,1751646650838,-175.0,0.00018727,2]
[369617359,1751646650849,-177.6838736,0.0001874,2]
[369617361,1751646650859,-301.4252844,0.0001874,2]
[369617363,1751646650868,-575.7832369,0.0001874,2]
[369617365,1751646650878,-306.0,0.0001874,2]
[369617367,1751646650887,-307.3890461,0.0001874,2]
[369617369,1751646650896,-159.4209444,0.0001874,2]
[369617371,1751646650905,-575.7832369,0.0001874,2]
[369617373,1751646650915,-177.6838736,0.0001874,2]
[369617375,1751646650924,-177.6838736,0.0001874,2]
[369617377,1751646650934,-159.4209444,0.0001874,2]
[369617379,1751646650943,-575.7832369,0.0001874,2]
[369617381,1751646650953,-177.4506208,0.0001874,2]
[369617383,1751646650963,-159.2162368,0.0001874,2]
[369617385,1751646650974,-575.0409573,0.0001874,2]
[369617387,1751646650983,-166.666666,0.00018762,2]
[369617389,1751646650992,-534.522867,0.00018794,2]
[369617391,1751646651002,-175.0,0.0001881,2]
[369617393,1751646651011,-4203.34033049,0.00018831,2]
[369617395,1751646651021,-12500.0,0.00018886,2]
[369617397,1751646651030,-175.0,0.00018892,2]
[369617399,1751646651039,-12500.0,0.00018895,2]
[369617401,1751646651049,-2000.0,0.000189,2]
[369617403,1751646651058,-12500.0,0.00018904,2]
[369617405,1751646651068,-460.0,0.00018904,2]
[369617407,1751646651077,-744.35,0.00018904,2]
[369617408,1751646651086,-653.25,0.00018904,2]
[369617411,1751646651096,-771.16,0.00018904,2]
[369617412,1751646651106,-955.75,0.00018904,2]
[369617414,1751646651116,-460.0,0.00018904,2]
[369617416,1751646651126,-713.62,0.00018904,2]
[369617418,1751646651135,-460.0,0.00018904,2]
[369617420,1751646651144,-663.05,0.00018904,2]
[369617422,1751646651153,-460.0,0.00018904,2]
[369617424,1751646651164,-460.0,0.00018904,2]
[369617426,1751646651174,-710.47,0.00018904,2]
[369617428,1751646651183,-1269.79,0.00018904,2]
[369617430,1751646651196,-460.0,0.00018904,2]
[369617432,1751646651206,-460.0,0.00018904,2]
[369617434,1751646651215,-538.69,0.00018904,2]
[369617436,1751646651225,-867.35,0.00018904,2]
[369617438,1751646651234,-460.0,0.00018904,2]
[369617440,1751646651243,-460.0,0.00018904,2]
[369617442,1751646651252,-460.0,0.00018904,2]
[369617444,1751646651264,-522.98,0.00018904,2]
[369617446,1751646651273,-460.0,0.00018904,2]
[369617448,1751646651283,-307.7297781,0.00018928,2]
[369617449,1751646651292,-175.0,0.00018974,2]
[369617451,1751646651303,-200.28767382,0.00019,2]
[369617453,1751646651312,-302.60665372,0.00019,2]
[369617455,1751646651321,-302.60665372,0.00019,2]
[369617457,1751646651331,-161.19211003,0.00019,2]
[369617459,1751646651340,-553.91360058,0.00019012,2]
[369617461,1751646651350,-175.0,0.00019057,2]
[369617463,1751646651359,-984.73528992,0.00019096,2]
[369617465,1751646651368,-2000.0,0.000191,2]
[369617467,1751646651377,-4203.34033049,0.00019107,2]
[369617469,1751646651387,-175.0,0.00019139,2]
[369617471,1751646651396,-2011.99532331,0.00019168,2]
[369617473,1751646651405,-500.0,0.00019177,2]
[369617475,1751646651416,-183.43984992,0.00019177,2]
[369617477,1751646651426,-500.0,0.00019177,2]
[369617479,1751646651435,-500.0,0.00019177,2]
[369617480,1751646651445,-287.56951709,0.00019177,2]
[369617482,1751646651456,-399.33873558,0.00019178,2]
[369617484,1751646651466,-460.0,0.00019178,2]
[369617486,1751646651476,-744.35,0.00019178,2]
[369617488,1751646651485,-653.25,0.00019178,2]
[369617490,1751646651495,-771.16,0.00019178,2]
[369617492,1751646651505,-955.75,0.00019178,2]
[369617494,1751646651514,-460.0,0.00019178,2]
[369617496,1751646651523,-713.62,0.00019178,2]
[369617498,1751646651533,-460.0,0.00019178,2]
[369617500,1751646651542,-663.05,0.00019178,2]
[369617502,1751646651551,-460.0,0.00019178,2]
[369617504,1751646651560,-460.0,0.00019178,2]
[369617505,1751646651569,-710.47,0.00019178,2]
[369617507,1751646651579,-1269.79,0.00019178,2]
[369617509,1751646651588,-460.0,0.00019178,2]
[369617511,1751646651598,-460.0,0.00019178,2]
[369617513,1751646651607,-538.69,0.00019178,2]
[369617515,1751646651617,-867.35,0.00019178,2]
[369617517,1751646651627,-460.0,0.00019178,2]
[369617519,1751646651637,-500.0,0.00019178,2]
[369617521,1751646651646,-151.0,0.00019178,2]
[369617523,1751646651656,-198.59516479,0.00019178,2]
[369617525,1751646651668,-460.0,0.00019178,2]
[369617527,1751646651678,-460.0,0.00019178,2]
[369617529,1751646651688,-522.98,0.00019178,2]
[369617531,1751646651697,-460.0,0.00019178,2]
[369617533,1751646651706,-666.0,0.00019178,2]
[369617535,1751646651715,-1389.260762,0.00019178,2]
[369617537,1751646651725,-13495.7847294,0.00019178,2]
[369617539,1751646651734,-1538.64889051,0.00019181,2]
[369617541,1751646651743,-302.60665372,0.0001919,2]
[369617543,1751646651753,-151.43935029,0.0001919,2]
[369617544,1751646651763,-2042.62571435,0.00019205,5]
[369617546,1751646651772,-601.0,0.00019205,2]
[369617548,1751646651781,-151.0,0.00019205,2]
[369617550,1751646651790,-175.0,0.00019221,2]
[369617552,1751646651800,-151.0,0.00019233,2]
[369617554,1751646651809,-151.0,0.00019257,3]
[369617556,1751646651818,-221.84063431,0.0001926,2]
[369617558,1751646651827,-2215.65440233,0.00019265,2]
[369617560,1751646651837,-2000.0,0.000193,2]
[369617562,1751646651846,-175.0,0.00019304,2]
[369617564,1751646651855,-151.0,0.00019329,2]
[369617566,1751646651865,-151.0,0.00019329,2]
[369617568,1751646651874,-100000.0,0.00019329,2]
[369617570,1751646651884,-3015.75182539,0.00019349,2]
[369617572,1751646651893,-302.60665372,0.0001938,2]
[369617573,1751646651902,-4203.34033049,0.00019383,2]
[369617575,1751646651912,-175.0,0.00019386,2]
[369617577,1751646651921,-3938.94115969,0.00019433,2]
[369617579,1751646651931,-460.0,0.00019452,2]
[369617581,1751646651940,-744.35,0.00019452,2]
[369617583,1751646651949,-653.25,0.00019452,2]
[369617585,1751646651959,-771.16,0.00019452,2]
[369617587,1751646651968,-955.75,0.00019452,2]
[369617589,1751646651977,-460.0,0.00019452,2]
[369617591,1751646651987,-713.62,0.00019452,2]
[369617593,1751646651996,-460.0,0.00019452,2]
[369617595,1751646652006,-663.05,0.00019452,2]
[369617597,1751646652015,-460.0,0.00019452,2]
[369617599,1751646652024,-460.0,0.00019452,2]
[369617601,1751646652034,-710.47,0.00019452,2]
[369617603,1751646652043,-1269.79,0.00019452,2]
[369617605,1751646652053,-460.0,0.00019452,2]
[369617607,1751646652062,-460.0,0.00019452,2]
[369617608,1751646652071,-538.69,0.00019452,2]
[369617610,1751646652080,-867.35,0.00019452,2]
[369617612,1751646652090,-460.0,0.00019452,2]
[369617614,1751646652099,-460.0,0.00019452,2]
[369617616,1751646652109,-460.0,0.00019452,2]
[369617618,1751646652118,-522.98,0.00019452,2]
[369617620,1751646652128,-460.0,0.00019452,2]
[369617622,1751646652137,-175.0,0.00019468,2]
[369617624,1751646652146,-4985.22240524,0.00019517,2]
[369617626,1751646652155,-175.0,0.00019551,2]
[369617628,1751646652165,-302.60665372,0.0001957,2]
[369617630,1751646652174,-161.236527,0.000196,3]
[369617632,1751646652183,-177.731863,0.000196,3]
[369617634,1751646652196,-6154.59556202,0.00019602,2]
[369617636,1751646652205,-193.89462747,0.00019638,2]
[369617638,1751646652214,-151.0,0.00019655,4]
[369617640,1751646652223,-4203.34033049,0.00019659,2]
[369617642,1751646652236,-823.0,0.00019677,2]
[369617644,1751646652244,-7447.06063005,0.00019686,2]
[369617645,1751646652254,-151.0,0.000197,2]
[369617647,1751646652263,-223.0315306,0.0001971,2]
[369617649,1751646652273,-460.0,0.00019726,2]
[369617651,1751646652282,-744.35,0.00019726,2]
[369617653,1751646652292,-653.25,0.00019726,2]
[369617655,1751646652301,-771.16,0.00019726,2]
[369617657,1751646652310,-955.75,0.00019726,2]
[369617659,1751646652319,-460.0,0.00019726,2]
[369617661,1751646652328,-713.62,0.00019726,2]
[369617663,1751646652338,-460.0,0.00019726,2]
[369617665,1751646652347,-663.05,0.00019726,2]
[369617667,1751646652357,-460.0,0.00019726,2]
[369617669,1751646652366,-460.0,0.00019726,2]
[369617671,1751646652375,-710.47,0.00019726,2]
[369617672,1751646652384,-1269.79,0.00019726,2]
[369617673,1751646652393,-460.0,0.00019726,2]
[369617674,1751646652403,-460.0,0.00019726,2]
[369617675,1751646652412,-538.69,0.00019726,2]
[369617676,1751646652421,-867.35,0.00019726,2]
[369617677,1751646652430,-460.0,0.00019726,2]
[369617678,1751646652485,-460.0,0.00019726,2]
[369617679,1751646652495,-460.0,0.00019726,2]
[369617680,1751646652504,-522.98,0.00019726,2]
[369617681,1751646652513,-460.0,0.00019726,2]
[369617682,1751646652523,-302.60665372,0.0001976,2]
[369617683,1751646652533,-8862.61760931,0.0001977,2]
[369617684,1751646652543,-3698.17733096,0.000198,2]
[369617685,1751646652552,-26804.94559885,0.000198,2]
[369617686,1751646652562,-208.0,0.0001983,2]
[369617687,1751646652571,-7616.2381482,0.00019835,2]
[369617688,1751646652580,-10401.26649982,0.00019854,2]
[369617689,1751646652590,-2000.0,0.000199,2]
[369617690,1751646652599,-3722.7892748,0.000199,4]
[369617691,1751646652608,-68194.62241888,0.00019934,4]
[369617692,1751646652623,-151464.02380589,0.00019934,4]
[369617693,1751646652639,-269.70644382,0.00019934,4]
[369617853,1751646654252,544.063776,0.00013699,2]
[369618316,1751646692119,200.0,0.00023893,120]
[369618317,1751646730158,189.583012,0.00027397,120]
[369618319,1751646751449,200.0,0.00025646,120]
[369618320,1751646811459,200.0,0.00024849,120]
[369618321,1751646871163,200.0,0.00025757,120]
[369618323,1751646931529,200.0,0.00023867,120]
[369618325,1751646991563,200.0,0.00024015,120]
[369618327,1751647052451,200.0,0.00024949,120]
[369618330,1751647111349,200.0,0.00026128,120]
[369618348,1751647674667,530.820921,0.00013699,2]
[369618385,1751647832044,-300.0,0.00015999,2]
[369618386,1751647832055,-682.62,0.00016,2]
[369618387,1751647832067,-373.95734508,0.00016,2]
[369618418,1751647837682,-201.87749838,0.00015982,2]
[369618420,1751647837692,-2349.10250162,0.00016,2]
[369618425,1751647837737,-25334.33723227,0.00016,2]
[369618427,1751647837748,-24900.0,0.00016083,2]
[369618428,1751647837757,-208.05070264,0.00016338,2]
[369618429,1751647837767,-461.45439657,0.00016438,2]
[369618430,1751647837776,-460.0,0.00016438,2]
[369618431,1751647837786,-460.0,0.00016438,2]
[369618433,1751647837796,-460.0,0.00016438,2]
[369618434,1751647837806,-460.0,0.00016438,2]
[369618435,1751647837816,-312.21,0.00016438,2]
[369618436,1751647837825,-460.0,0.00016438,2]
[369618437,1751647837835,-460.0,0.00016438,2]
[369618438,1751647837844,-500.0,0.00016438,2]
[369618439,1751647837853,-500.0,0.00016438,2]
[369618440,1751647837862,-295.06008309,0.00016438,2]
[369618441,1751647837871,-460.0,0.00016438,2]
[369618442,1751647837881,-460.0,0.00016438,2]
[369618443,1751647837890,-460.0,0.00016438,2]
[369618444,1751647837899,-460.0,0.00016438,2]
[369618445,1751647837908,-460.0,0.00016438,2]
[369618446,1751647837918,-460.0,0.00016438,2]
[369618447,1751647837927,-460.0,0.00016438,2]
[369618448,1751647837937,-460.0,0.00016438,2]
[369618449,1751647837947,-460.0,0.00016438,2]
[369618450,1751647837957,-460.0,0.00016438,2]
[369618451,1751647837966,-563.59,0.00016438,2]
[369618452,1751647837976,-460.0,0.00016438,2]
[369618453,1751647837986,-460.0,0.00016438,2]
[369618454,1751647837996,-460.0,0.00016438,2]
[369618455,1751647838005,-460.0,0.00016438,2]
[369618456,1751647838015,-460.0,0.00016438,2]
[369618457,1751647838024,-460.0,0.00016438,2]
[369618458,1751647838034,-460.0,0.00016438,2]
[369618459,1751647838043,-460.0,0.00016438,2]
[369618460,1751647838052,-460.0,0.00016438,2]
[369618461,1751647838062,-460.0,0.00016438,2]
[369618462,1751647838071,-460.0,0.00016438,2]
[369618463,1751647838081,-460.0,0.00016438,2]
[369618464,1751647838090,-460.0,0.00016438,2]
[369618465,1751647838100,-500.0,0.00016438,2]
[369618466,1751647838109,-500.0,0.00016438,2]
[369618467,1751647838118,-460.0,0.00016438,2]
[369618468,1751647838127,-460.0,0.00016438,2]
[369618469,1751647838137,-460.0,0.00016438,2]
[369618470,1751647838146,-565.90053956,0.00016438,2]
[369618471,1751647838156,-460.0,0.00016438,2]
[369618472,1751647838166,-460.0,0.00016438,2]
[369618473,1751647838177,-2040.47,0.00016438,2]
[369618474,1751647838188,-475.59,0.00016438,2]
[369618475,1751647838198,-732.42,0.00016438,2]
[369618476,1751647838207,-181.27285946,0.00016438,2]
[369618477,1751647838216,-460.0,0.00016438,2]
[369618478,1751647838226,-460.0,0.00016438,2]
[369618479,1751647838235,-460.0,0.00016438,2]
[369618480,1751647838245,-460.0,0.00016438,2]
[369618481,1751647838254,-460.0,0.00016438,2]
[369618482,1751647838264,-460.0,0.00016438,2]
[369618483,1751647838274,-578.60596437,0.00016438,2]
[369618484,1751647838284,-240.0,0.00016438,2]
[369618485,1751647838294,-460.0,0.00016438,2]
[369618486,1751647838304,-460.0,0.00016438,2]
[369618487,1751647838315,-460.0,0.00016438,2]
[369618488,1751647838325,-460.0,0.00016438,2]
[369618489,1751647838335,-460.0,0.00016438,2]
[369618490,1751647838345,-460.0,0.00016438,2]
[369618491,1751647838355,-460.0,0.00016438,2]
[369618492,1751647838366,-460.0,0.00016438,2]
[369618493,1751647838376,-460.0,0.00016438,2]
[369618494,1751647838386,-460.0,0.00016438,2]
[369618495,1751647838396,-460.0,0.00016438,2]
[369618496,1751647838405,-460.0,0.00016438,2]
[369618497,1751647838415,-460.0,0.00016438,2]
[369618498,1751647838426,-460.0,0.00016438,2]
[369618499,1751647838437,-500.0,0.00016438,2]
[369618500,1751647838447,-493.4913056,0.00016438,2]
[369618501,1751647838456,-500.0,0.00016711,2]
[369618502,1751647838467,-460.0,0.00016712,2]
[369618503,1751647838477,-460.0,0.00016712,2]
[369618504,1751647838486,-460.0,0.00016712,2]
[369618505,1751647838496,-460.0,0.00016712,2]
[369618506,1751647838505,-563.59,0.00016712,2]
[369618507,1751647838515,-460.0,0.00016712,2]
[369618508,1751647838524,-188.62331886,0.00016712,2]
[369618509,1751647838534,-460.0,0.00016712,2]
[369618510,1751647838545,-460.0,0.00016712,2]
[369618511,1751647838556,-460.0,0.00016712,2]
[369618512,1751647838570,-460.0,0.00016712,2]
[369618513,1751647838581,-460.0,0.00016712,2]
[369618514,1751647838593,-460.0,0.00016712,2]
[369618515,1751647838602,-2040.47,0.00016712,2]
[369618516,1751647838614,-732.42,0.00016712,2]
[369618517,1751647838623,-460.0,0.00016712,2]
[369618518,1751647838633,-460.0,0.00016712,2]
[369618519,1751647838645,-460.0,0.00016712,2]
[369618520,1751647838656,-460.0,0.00016712,2]
[369618521,1751647838665,-460.0,0.00016712,2]
[369618522,1751647838675,-460.0,0.00016712,2]
[369618523,1751647838685,-492.45262951,0.00016712,2]
[369618524,1751647838695,-460.0,0.00016712,2]
[369618525,1751647838705,-267.00262991,0.00016882,2]
[369618526,1751647838714,-172.99130016,0.00016886,2]
[369618527,1751647838724,-2740.02854742,0.000169,2]
[369618528,1751647838734,-207.4,0.00016972,2]
[369618529,1751647838744,-690.642,0.00016972,2]
[369618530,1751647838754,-151.0,0.00016972,2]
[369618531,1751647838763,-151.0,0.00016972,2]
[369618532,1751647838773,-198.0,0.00016972,2]
[369618533,1751647838782,-4920.71344419,0.00016972,2]
[369618534,1751647838900,-4858.64262905,0.00016972,2]
[369619084,1751647842896,-460.0,0.00016438,2]
[369619086,1751647842906,-460.0,0.00016712,2]
[369619088,1751647842916,-3448.88326791,0.00016972,2]
[369619090,1751647842927,-480.91100225,0.00016985,2]
[369619092,1751647842936,-461.18503718,0.00016985,2]
[369619094,1751647842946,-500.0,0.00016985,2]
[369619096,1751647842955,-460.0,0.00016986,2]
[369619098,1751647842965,-460.0,0.00016986,2]
[369619100,1751647842974,-460.0,0.00016986,2]
[369619102,1751647842984,-563.59,0.00016986,2]
[369619104,1751647842994,-460.0,0.00016986,2]
[369619106,1751647843004,-460.0,0.00016986,2]
[369619108,1751647843014,-460.0,0.00016986,2]
[369619111,1751647843024,-460.0,0.00016986,2]
[369619113,1751647843034,-460.0,0.00016986,2]
[369619115,1751647843044,-460.0,0.00016986,2]
[369619117,1751647843053,-460.0,0.00016986,2]
[369619119,1751647843063,-2040.47,0.00016986,2]
[369619121,1751647843072,-732.42,0.00016986,2]
[369619123,1751647843082,-460.0,0.00016986,2]
[369619126,1751647843091,-460.0,0.00016986,2]
[369619128,1751647843101,-460.0,0.00016986,2]
[369619130,1751647843110,-460.0,0.00016986,2]
[369619132,1751647843119,-460.0,0.00016986,2]
[369619134,1751647843129,-460.0,0.00016986,2]
[369619136,1751647843139,-460.0,0.00016986,2]
[369619138,1751647843149,-460.0,0.00016986,2]
[369619140,1751647843158,-716.195754,0.00017027,2]
[369619142,1751647843167,-411.74241697,0.00017082,2]
[369619144,1751647843180,-330.95257993,0.00017082,2]
[369619146,1751647843190,-160.0,0.00017097,2]
[369619148,1751647843199,-213.97741257,0.00017097,2]
[369619150,1751647843209,-837.48520791,0.00017097,2]
[369619152,1751647843219,-230.40116161,0.00017097,2]
[369619154,1751647843228,-215.11345689,0.00017097,2]
[369619156,1751647843238,-847.91215827,0.00017097,2]
[369619158,1751647843247,-160.0,0.00017097,2]
[369619160,1751647843256,-770.17471178,0.00017137,2]
[369619162,1751647843266,-893.67740093,0.00017176,2]
[369619400,1751647845846,-1846.35114628,0.00017176,2]
[369619402,1751647845856,-798.67117612,0.00017192,2]
[369619404,1751647845866,-828.22200964,0.00017247,2]
[369619406,1751647845876,-219.69039246,0.00017259,2]
[369619408,1751647845885,-211.53766036,0.00017259,2]
[369619410,1751647845895,-304.59088819,0.00017259,2]
[369619412,1751647845905,-500.0,0.00017259,2]
[369619414,1751647845915,-294.1371161,0.00017259,2]
[369619416,1751647845925,-500.0,0.00017259,2]
[369619418,1751647845935,-460.0,0.0001726,2]
[369619420,1751647845945,-460.0,0.0001726,2]
[369619422,1751647845955,-460.0,0.0001726,2]
[369619425,1751647845965,-563.59,0.0001726,2]
[369619427,1751647845975,-460.0,0.0001726,2]
[369619429,1751647845985,-460.0,0.0001726,2]
[369619431,1751647845995,-460.0,0.0001726,2]
[369619433,1751647846007,-460.0,0.0001726,2]
[369619435,1751647846017,-460.0,0.0001726,2]
[369619437,1751647846026,-460.0,0.0001726,2]
[369619439,1751647846036,-460.0,0.0001726,2]
[369619441,1751647846045,-2040.47,0.0001726,2]
[369619443,1751647846055,-732.42,0.0001726,2]
[369619444,1751647846064,-460.0,0.0001726,2]
[369619447,1751647846075,-460.0,0.0001726,2]
[369619449,1751647846084,-460.0,0.0001726,2]
[369619451,1751647846094,-460.0,0.0001726,2]
[369619452,1751647846104,-460.0,0.0001726,2]
[369619454,1751647846113,-460.0,0.0001726,2]
[369619456,1751647846122,-460.0,0.0001726,2]
[369619459,1751647846132,-460.0,0.0001726,2]
[369619461,1751647846143,-501.09,0.00017292,3]
[369619463,1751647846153,-646.21,0.000173,2]
[369619465,1751647846163,-800.78092708,0.00017302,2]
[369619467,1751647846172,-2740.02854721,0.00017452,2]
[369619469,1751647846181,-208.05070259,0.0001748,2]
[369619471,1751647846190,-420.0,0.00017492,2]
[369619473,1751647846200,-500.0,0.00017533,2]
[369619475,1751647846209,-460.0,0.00017534,2]
[369619477,1751647846219,-460.0,0.00017534,2]
[369619479,1751647846228,-460.0,0.00017534,2]
[369619480,1751647846237,-563.59,0.00017534,2]
[369619482,1751647846246,-460.0,0.00017534,2]
[369619484,1751647846256,-460.0,0.00017534,2]
[369619486,1751647846265,-460.0,0.00017534,2]
[369619488,1751647846275,-460.0,0.00017534,2]
[369619490,1751647846284,-460.0,0.00017534,2]
[369619492,1751647846293,-460.0,0.00017534,2]
[369619494,1751647846303,-460.0,0.00017534,2]
[369619496,1751647846312,-2040.47,0.00017534,2]
[369619499,1751647846325,-732.42,0.00017534,2]
[369619501,1751647846335,-241.06658403,0.00017534,2]
[369619503,1751647846344,-460.0,0.00017534,2]
[369619505,1751647846353,-460.0,0.00017534,2]
[369619506,1751647846363,-460.0,0.00017534,2]
[369619509,1751647846373,-460.0,0.00017534,2]
[369619511,1751647846383,-460.0,0.00017534,2]
[369619513,1751647846392,-460.0,0.00017534,2]
[369619515,1751647846401,-460.0,0.00017534,2]
[369619517,1751647846411,-2740.02854721,0.00017728,2]
[369619519,1751647846420,-250.0,0.00017804,2]
[369619521,1751647846431,-500.0,0.00017807,2]
[369619523,1751647846449,-460.0,0.00017808,2]
[369619525,1751647846462,-460.0,0.00017808,2]
[369619527,1751647846471,-460.0,0.00017808,2]
[369619529,1751647846482,-10.34430273,0.00017808,2]
[369620182,1751647893093,150.5,0.0002191,120]
[369620183,1751647893963,169.6,0.000219,120]
[369620188,1751647984195,1829.4,0.00027,120]
[369620213,1751648858162,504.279874,0.00013699,2]
[369620217,1751648907921,196.1918511,0.00027397,120]
[369620255,1751649032050,-300.0,0.00016322,2]
[369620257,1751649032060,-1271.76128968,0.00016323,2]
[369620259,1751649032072,-1194.0,0.00016323,2]
[369620261,1751649032083,-1275.49,0.00016323,2]
[369620281,1751649037896,-765.0,0.00016323,2]
[369620282,1751649037951,-379.2939947,0.00016323,2]
[369620283,1751649038003,-20014.45471562,0.00016323,2]
[369620284,1751649038013,-460.0,0.00016438,2]
[369620285,1751649038026,-460.0,0.00016438,2]
[369620286,1751649038037,-460.0,0.00016438,2]
[369620287,1751649038047,-460.0,0.00016438,2]
[369620288,1751649038056,-460.0,0.00016438,2]
[369620289,1751649038066,-460.0,0.00016438,2]
[369620290,1751649038075,-500.0,0.00016438,2]
[369620291,1751649038085,-500.0,0.00016438,2]
[369620292,1751649038094,-460.0,0.00016438,2]
[369620293,1751649038103,-529.67881545,0.00016438,2]
[369620294,1751649038114,-460.0,0.00016438,2]
[369620295,1751649038123,-544.90725959,0.00016438,2]
[369620296,1751649038132,-579.84,0.00016438,2]
[369620297,1751649038141,-1615.37,0.00016438,2]
[369620298,1751649038150,-460.0,0.00016438,2]
[369620299,1751649038160,-460.0,0.00016438,2]
[369620300,1751649038169,-460.0,0.00016438,2]
[369620301,1751649038178,-460.0,0.00016438,2]
[369620302,1751649038188,-460.0,0.00016438,2]
[369620303,1751649038197,-460.0,0.00016438,2]
[369620304,1751649038206,-460.0,0.00016438,2]
[369620305,1751649038215,-460.0,0.00016438,2]
[369620306,1751649038224,-14839.5152719,0.00016438,2]
[369620307,1751649038234,-150.0,0.000167,2]
[369620308,1751649038243,-500.0,0.00016711,2]
[369620309,1751649038252,-460.0,0.00016712,2]
[369620310,1751649038262,-460.0,0.00016712,2]
[369620311,1751649038283,-460.0,0.00016712,2]
[369620312,1751649038293,-460.0,0.00016712,2]
[369620313,1751649038304,-460.0,0.00016712,2]
[369620314,1751649038313,-460.0,0.00016712,2]
[369620315,1751649038324,-460.0,0.00016712,2]
[369620316,1751649038334,-460.0,0.00016712,2]
[369620317,1751649038345,-579.84,0.00016712,2]
[369620318,1751649038355,-1615.37,0.00016712,2]
[369620319,1751649038365,-460.0,0.00016712,2]
[369620320,1751649038375,-460.0,0.00016712,2]
[369620321,1751649038388,-460.0,0.00016712,2]
[369620322,1751649038398,-460.0,0.00016712,2]
[369620323,1751649038408,-460.0,0.00016712,2]
[369620324,1751649038418,-460.0,0.00016712,2]
[369620325,1751649038427,-460.0,0.00016712,2]
[369620326,1751649038437,-460.0,0.00016712,2]
[369620327,1751649038447,-460.0,0.00016986,2]
[369620328,1751649038456,-460.0,0.00016986,2]
[369620329,1751649038466,-460.0,0.00016986,2]
[369620330,1751649038476,-460.0,0.00016986,2]
[369620331,1751649038486,-476.63653693,0.00016986,2]
[369620332,1751649038496,-460.0,0.00016986,2]
[369620333,1751649038506,-460.0,0.00016986,2]
[369620334,1751649038515,-460.0,0.00016986,2]
[369620335,1751649038524,-579.84,0.00016986,2]
[369620336,1751649038534,-1615.37,0.00016986,2]
[369620337,1751649038543,-454.96364056,0.00016986,2]
[369620338,1751649038553,-460.0,0.00016986,2]
[369620339,1751649038563,-460.0,0.00016986,2]
[369620340,1751649038573,-460.0,0.00016986,2]